fUST/lending_fUST_20250530
["ID","MTS","AMOUNT","RATE_DAILY","PERIOD"]
[363095711,1748574653036,-430.0,0.0002,2]
[363095713,1748574653046,-1038.75,0.0002,2]
[363095715,1748574653055,-430.0,0.0002,2]
[363095717,1748574653065,-185.380227,0.0002,2]
[363095719,1748574653074,-177.61657069,0.0002,2]
[363095721,1748574653083,-430.0,0.0002,2]
[363095723,1748574653094,-1127.4,0.0002,2]
[363095725,1748574653103,-407.9288438,0.0002,2]
[363095727,1748574653112,-430.0,0.0002,2]
[363095729,1748574653121,-430.0,0.0002,2]
[363095731,1748574653130,-430.0,0.0002,2]
[363095733,1748574653140,-430.0,0.0002,2]
[363095735,1748574653149,-173232.05059633,0.0002,2]
[363095741,1748574653197,-1902.11848603,0.0002,2]
[363095743,1748574653208,-30460.5017087,0.0002,2]
[363095745,1748574653219,-709.16309492,0.0002,2]
[363096110,1748574671927,169.67,0.00015971,2]
[363096111,1748574674036,1155.958452,0.00013699,2]
[363096113,1748574741930,184.22,0.00013906,2]
[363096114,1748574742353,368.44,0.00014569,2]
[363096115,1748574743293,289.26654935,0.00015231,2]
[363096116,1748574743317,263.40345065,0.00015231,2]
[363096117,1748574743708,203.13674112,0.00015893,2]
[363096118,1748574743732,533.75325888,0.00015893,2]
[363096119,1748574813925,155.69,0.00013898,2]
[363096120,1748574814353,311.39,0.0001456,2]
[363096121,1748574814944,467.08,0.00015221,2]
[363096122,1748574815203,622.77,0.00015883,2]
[363096126,1748574884937,257.91,0.00014557,2]
[363096127,1748574885340,386.87,0.00015219,2]
[363096128,1748574885744,515.82,0.0001588,2]
[363096130,1748574955437,215.71,0.00014533,2]
[363096131,1748574955982,323.56,0.00015194,2]
[363096132,1748574956329,431.41,0.00015855,2]
[363096135,1748575026719,215.55,0.00014533,2]
[363096136,1748575027130,323.33,0.00015194,2]
[363096137,1748575027692,431.11,0.00015854,2]
[363096138,1748575098256,182.59,0.00014529,2]
[363096139,1748575099391,273.89,0.0001519,2]
[363096140,1748575099787,365.19,0.0001585,2]
[363096141,1748575151650,2370.17611399,0.00016,2]
[363096142,1748575170536,182.98,0.00014526,2]
[363096143,1748575170939,274.47,0.00015186,2]
[363096144,1748575171873,365.96,0.00015846,2]
[363096145,1748575173165,-457.45,0.00016507,2]
[363096146,1748575173188,-2978.2690584,0.00017847,2]
[363096147,1748575173210,-300.0,0.00018898,2]
[363096148,1748575173233,-1200.0,0.00018899,2]
[363096149,1748575173256,-300.0,0.00018899,2]
[363096150,1748575173278,-300.73612039,0.000189,2]
[363096151,1748575173303,-6612.74733911,0.000189,2]
[363096152,1748575173332,-1158.78078978,0.000189,2]
[363096153,1748575173359,-1158.78078956,0.00019107,2]
[363096154,1748575173383,-500.0,0.00019176,2]
[363096155,1748575173406,-189.49685595,0.00019176,2]
[363096156,1748575173429,-500.0,0.00019176,2]
[363096157,1748575173453,-500.0,0.00019176,2]
[363096158,1748575173477,-187.14357812,0.00019176,2]
[363096159,1748575173501,-504.72129695,0.00019176,2]
[363096160,1748575173523,-500.0,0.00019176,2]
[363096161,1748575173546,-160.0,0.00019177,2]
[363096162,1748575173567,-500.0,0.00019177,2]
[363096163,1748575173591,-500.0,0.00019177,2]
[363096164,1748575173615,-500.0,0.00019177,2]
[363096165,1748575173639,-500.0,0.00019177,2]
[363096166,1748575173664,-500.0,0.00019177,2]
[363096167,1748575173688,-237.35144883,0.00019177,2]
[363096168,1748575173713,-500.0,0.00019177,2]
[363096169,1748575173736,-500.0,0.00019177,2]
[363096170,1748575173759,-500.0,0.00019177,2]
[363096171,1748575173782,-500.0,0.00019177,2]
[363096172,1748575173810,-500.0,0.00019177,2]
[363096173,1748575173834,-500.0,0.00019177,2]
[363096174,1748575173857,-404.38169133,0.00019177,2]
[363096175,1748575173880,-500.0,0.00019177,2]
[363096176,1748575173903,-500.0,0.00019177,2]
[363096177,1748575173926,-734.84977264,0.00019177,2]
[363096178,1748575173949,-734.84977264,0.00019177,2]
[363096179,1748575173973,-734.84977264,0.00019177,2]
[363096180,1748575173997,-734.84977264,0.00019177,2]
[363096181,1748575174021,-734.84977264,0.00019177,2]
[363096182,1748575174045,-734.84977264,0.00019177,2]
[363096183,1748575174069,-734.84977264,0.00019177,2]
[363096184,1748575174091,-734.84977264,0.00019177,2]
[363096185,1748575174117,-734.84977264,0.00019177,2]
[363096186,1748575174140,-734.84977264,0.00019177,2]
[363096187,1748575174163,-734.84977264,0.00019177,2]
[363096188,1748575174186,-734.84977264,0.00019177,2]
[363096189,1748575174208,-956.29774467,0.00019177,2]
[363096190,1748575174230,-956.29774467,0.00019177,2]
[363096191,1748575174251,-510.65615027,0.00019178,2]
[363096192,1748575174271,-430.0,0.00019178,2]
[363096193,1748575174293,-430.0,0.00019178,2]
[363096194,1748575174315,-430.0,0.00019178,2]
[363096195,1748575174336,-430.0,0.00019178,2]
[363096196,1748575174357,-430.0,0.00019178,2]
[363096197,1748575174379,-399.64830991,0.00019178,2]
[363096198,1748575174400,-430.0,0.00019178,2]
[363096199,1748575174419,-430.0,0.00019178,2]
[363096200,1748575174440,-458.89270919,0.00019178,2]
[363096201,1748575174460,-430.0,0.00019178,2]
[363096202,1748575174480,-441.54871335,0.00019178,2]
[363096203,1748575174501,-172.60238784,0.00019178,2]
[363096204,1748575203136,855.0973987,0.00015,2]
[363096205,1748575203161,10325.71022222,0.00015,2]
[363096206,1748575203184,2856.19237908,0.00015,2]
[363096207,1748575243411,204.61,0.00015217,2]
[363096208,1748575243826,272.81,0.00015878,2]
[363096209,1748575314062,187.62,0.00015269,2]
[363096210,1748575314466,250.16,0.00015933,2]
[363096213,1748575384526,187.27,0.00015188,2]
[363096214,1748575384987,249.7,0.00015848,2]
[363096218,1748575455923,187.55,0.00015182,2]
[363096219,1748575456317,250.06,0.00015842,2]
[363096220,1748575526256,187.69,0.0001519,2]
[363096221,1748575526693,250.25,0.00015851,2]
[363096228,1748575597715,187.32,0.00015192,2]
[363096229,1748575598148,249.75,0.00015852,2]
[363096230,1748575645094,-1069.27979682,0.00016267,2]
[363096235,1748575669641,163.47,0.00015215,2]
[363096236,1748575670055,217.97,0.00015877,2]
[363096237,1748575706143,4423.28784314,0.00013,2]
[363096238,1748575706165,382.67805604,0.00013,2]
[363096242,1748575717534,490.91639285,0.00015,2]
[363096245,1748575739677,164.44,0.00015208,2]
[363096246,1748575740123,219.25,0.0001587,2]
[363096248,1748575744911,1177.899914,0.00013699,2]
[363096249,1748575757094,-4870.6,0.00016366,2]
[363096250,1748575767081,-129.4,0.00016366,2]
[363096251,1748575767103,-240.17816262,0.00016531,2]
[363096252,1748575768388,-33.88183738,0.00016531,2]
[363096253,1748575768410,-328.88,0.00017192,2]
[363096254,1748575768432,-300.0,0.00017496,2]
[363096255,1748575768453,-10848.32577717,0.00017497,2]
[363096259,1748575809814,180.91,0.00015855,2]
[363096316,1748575838490,-226.14,0.00016516,2]
[363096318,1748575838499,-271.36,0.00017177,2]
[363096320,1748575838508,-1248.48416468,0.00017322,2]
[363096325,1748575838545,-3751.51583532,0.00017322,2]
[363096327,1748575838554,-106.10442283,0.00017497,2]
[363096329,1748575838563,-194.969773,0.00017695,2]
[363096331,1748575838572,-316.59,0.00017837,2]
[363096333,1748575838581,-751.0023886,0.00017913,2]
[363096335,1748575838590,-300.0,0.00017999,2]
[363096337,1748575838599,-713.29040756,0.00017999,2]
[363096340,1748575838611,-258.70959244,0.00017999,2]
[363096342,1748575838620,-3174.66983269,0.00018,2]
[363096344,1748575838630,-1294.97879676,0.00018,2]
[363096346,1748575838639,-300.0,0.0001814,2]
[363096348,1748575838648,-214.08396616,0.00018141,2]
[363096350,1748575838660,-755.8897517,0.00018141,2]
[363096356,1748575838707,-325.00507872,0.00018141,2]
[363096359,1748575838716,-5000.0,0.000183,2]
[363096361,1748575838725,-1294.97879658,0.00018383,2]
[363096363,1748575838735,-361.82,0.00018498,2]
[363096365,1748575838744,-1294.97879658,0.00018624,2]
[363096367,1748575838754,-1294.97879658,0.00018866,2]
[363096369,1748575838763,-350.85880713,0.000189,2]
[363096371,1748575838772,-3000.0,0.00019,2]
[363096373,1748575838781,-525.67222237,0.00019006,2]
[363096375,1748575838790,-207.4,0.00019025,2]
[363096377,1748575838800,-584.37078786,0.00019106,2]
[363096379,1748575838810,-542.91010724,0.00019106,2]
[363096381,1748575838819,-500.0,0.00019106,2]
[363096383,1748575838828,-500.0,0.00019106,2]
[363096385,1748575838837,-171.23449552,0.00019106,2]
[363096387,1748575838847,-297.61578343,0.00019106,2]
[363096389,1748575838856,-500.0,0.00019106,2]
[363096391,1748575838865,-380.81820674,0.00019106,2]
[363096393,1748575838877,-164.91529568,0.00019106,2]
[363096395,1748575838887,-500.0,0.00019106,2]
[363096397,1748575838896,-500.0,0.00019106,2]
[363096399,1748575838905,-500.0,0.00019106,2]
[363096401,1748575838914,-500.0,0.00019106,2]
[363096403,1748575838924,-500.0,0.00019106,2]
[363096405,1748575838933,-500.0,0.00019106,2]
[363096407,1748575838943,-500.0,0.00019106,2]
[363096409,1748575838952,-500.0,0.00019106,2]
[363096411,1748575838963,-500.0,0.00019106,2]
[363096413,1748575838973,-500.0,0.00019106,2]
[363096415,1748575838982,-308.84845357,0.00019106,2]
[363096417,1748575838992,-500.0,0.00019106,2]
[363096419,1748575839001,-500.0,0.00019106,2]
[363096421,1748575839011,-404.2467859,0.00019106,2]
[363096424,1748575839020,-500.0,0.00019106,2]
[363096425,1748575839030,-500.0,0.00019106,2]
[363096427,1748575839039,-500.0,0.00019106,2]
[363096429,1748575839049,-500.0,0.00019106,2]
[363096432,1748575839058,-500.0,0.00019106,2]
[363096433,1748575839068,-500.0,0.00019106,2]
[363096435,1748575839077,-500.0,0.00019106,2]
[363096438,1748575839087,-500.0,0.00019106,2]
[363096440,1748575839096,-500.0,0.00019106,2]
[363096442,1748575839105,-500.0,0.00019106,2]
[363096443,1748575839116,-216.3656749,0.00019106,2]
[363096445,1748575839126,-500.0,0.00019106,2]
[363096447,1748575839136,-500.0,0.00019106,2]
[363096449,1748575839145,-1294.97879658,0.00019107,2]
[363096451,1748575839155,-407.05,0.00019158,2]
[363096453,1748575839163,-300.0,0.00019166,2]
[363096455,1748575839171,-300.0,0.00019166,2]
[363096457,1748575839180,-300.0,0.00019166,2]
[363096459,1748575839190,-300.0,0.00019166,2]
[363096461,1748575839198,-300.0,0.00019166,2]
[363096463,1748575839207,-300.0,0.00019166,2]
[363096480,1748575839216,-300.0,0.00019166,2]
[363096482,1748575839351,-300.0,0.00019166,2]
[363096484,1748575839361,-300.0,0.00019166,2]
[363096486,1748575839370,-300.0,0.00019166,2]
[363096488,1748575839381,-300.0,0.00019166,2]
[363096490,1748575839390,-300.0,0.00019166,2]
[363096492,1748575839399,-300.0,0.00019166,2]
[363096494,1748575839408,-300.0,0.00019166,2]
[363096496,1748575839417,-300.0,0.00019166,2]
[363096498,1748575839425,-500.0,0.00019173,2]
[363096500,1748575839434,-164.96506702,0.00019177,2]
[363096502,1748575839442,-430.0,0.00019178,2]
[363096504,1748575839451,-448.07631904,0.00019178,2]
[363096506,1748575839460,-430.76695145,0.00019178,2]
[363096508,1748575839469,-471.5420223,0.00019178,2]
[363096510,1748575839478,-430.0,0.00019178,2]
[363096513,1748575839487,-430.0,0.00019178,2]
[363096515,1748575839497,-430.0,0.00019178,2]
[363096516,1748575839507,-500.0,0.00019178,2]
[363096518,1748575839516,-581.82665717,0.00019178,2]
[363096520,1748575839525,-500.0,0.00019178,2]
[363096523,1748575839535,-500.0,0.00019178,2]
[363096524,1748575839544,-500.0,0.00019178,2]
[363096526,1748575839554,-500.0,0.00019178,2]
[363096528,1748575839563,-500.0,0.00019178,2]
[363096530,1748575839572,-500.0,0.00019178,2]
[363096532,1748575839581,-500.0,0.00019178,2]
[363096534,1748575839590,-500.0,0.00019178,2]
[363096536,1748575839599,-402.10870735,0.00019178,2]
[363096538,1748575839608,-500.0,0.00019178,2]
[363096540,1748575839619,-500.0,0.00019178,2]
[363096542,1748575839629,-500.0,0.00019178,2]
[363096545,1748575839638,-430.0,0.00019178,2]
[363096546,1748575839647,-430.0,0.00019178,2]
[363096548,1748575839657,-430.0,0.00019178,2]
[363096550,1748575839666,-403.97873106,0.00019178,2]
[363096553,1748575839675,-401.48027011,0.00019178,2]
[363096555,1748575839684,-400.0,0.00019178,2]
[363096557,1748575839694,-430.0,0.00019178,2]
[363096559,1748575839703,-430.0,0.00019178,2]
[363096561,1748575839712,-195.04558982,0.00019178,2]
[363096562,1748575839721,-430.0,0.00019178,2]
[363096564,1748575839731,-430.0,0.00019178,2]
[363096566,1748575839740,-430.0,0.00019178,2]
[363096568,1748575839750,-445.82025209,0.00019178,2]
[363096571,1748575839760,-400.0,0.00019178,2]
[363096573,1748575839769,-430.0,0.00019178,2]
[363096575,1748575839778,-317.29118866,0.00019178,2]
[363096577,1748575839787,-430.0,0.00019178,2]
[363096579,1748575839796,-430.0,0.00019178,2]
[363096581,1748575839806,-1012.85984742,0.00019178,2]
[363096583,1748575839815,-400.0,0.00019178,2]
[363096584,1748575839824,-342.02183518,0.00019178,2]
[363096586,1748575839834,-430.0,0.00019178,2]
[363096588,1748575839844,-400.0,0.00019178,2]
[363096590,1748575839855,-430.0,0.00019178,2]
[363096592,1748575839864,-430.0,0.00019178,2]
[363096594,1748575839876,-400.0,0.00019178,2]
[363096596,1748575839887,-400.0,0.00019178,2]
[363096598,1748575839896,-403.66588441,0.00019178,2]
[363096600,1748575839905,-400.0,0.00019178,2]
[363096602,1748575839915,-430.0,0.00019178,2]
[363096604,1748575839924,-400.0,0.00019178,2]
[363096606,1748575839933,-400.0,0.00019178,2]
[363096608,1748575839942,-430.0,0.00019178,2]
[363096610,1748575839952,-430.0,0.00019178,2]
[363096612,1748575839962,-400.0,0.00019178,2]
[363096614,1748575839971,-400.0,0.00019178,2]
[363096616,1748575839980,-400.0,0.00019178,2]
[363096618,1748575839989,-400.0,0.00019178,2]
[363096620,1748575839997,-430.0,0.00019178,2]
[363096623,1748575840007,-249.64013652,0.00019178,2]
[363096625,1748575840016,-400.0,0.00019178,2]
[363096627,1748575840026,-327.28320453,0.00019178,2]
[363096629,1748575840035,-430.0,0.00019178,2]
[363096631,1748575840044,-430.0,0.00019178,2]
[363096633,1748575840053,-430.0,0.00019178,2]
[363096635,1748575840063,-470.0,0.00019178,2]
[363096637,1748575840072,-430.0,0.00019178,2]
[363096639,1748575840082,-430.0,0.00019178,2]
[363096641,1748575840092,-501.66015232,0.00019178,2]
[363096643,1748575840102,-430.0,0.00019178,2]
[363096645,1748575840111,-430.0,0.00019178,2]
[363096647,1748575840120,-430.0,0.00019178,2]
[363096649,1748575840130,-430.0,0.00019178,2]
[363096651,1748575840139,-400.0,0.00019178,2]
[363096653,1748575840149,-430.0,0.00019178,2]
[363096655,1748575840158,-504.42079598,0.00019178,2]
[363096657,1748575840167,-430.0,0.00019178,2]
[363096659,1748575840176,-400.0,0.00019178,2]
[363096661,1748575840185,-430.0,0.00019178,2]
[363096663,1748575840195,-430.0,0.00019178,2]
[363096665,1748575840204,-430.0,0.00019178,2]
[363096667,1748575840213,-430.0,0.00019178,2]
[363096669,1748575840222,-430.0,0.00019178,2]
[363096671,1748575840231,-203.63469112,0.00019178,2]
[363096673,1748575840241,-529.54462458,0.00019178,2]
[363096675,1748575840251,-400.0,0.00019178,2]
[363096677,1748575840260,-430.0,0.00019178,2]
[363096679,1748575840269,-461.17496944,0.00019178,2]
[363096681,1748575840279,-430.0,0.00019178,2]
[363096683,1748575840288,-430.0,0.00019178,2]
[363096685,1748575840296,-430.0,0.00019178,2]
[363096687,1748575840305,-430.0,0.00019178,2]
[363096689,1748575840315,-400.0,0.00019178,2]
[363096691,1748575840324,-430.0,0.00019178,2]
[363096693,1748575840334,-430.0,0.00019178,2]
[363096695,1748575840345,-470.0,0.00019178,2]
[363096697,1748575840354,-430.0,0.00019178,2]
[363096699,1748575840363,-430.0,0.00019178,2]
[363096701,1748575840372,-430.0,0.00019178,2]
[363096703,1748575840382,-430.0,0.00019178,2]
[363096705,1748575840391,-430.0,0.00019178,2]
[363096706,1748575840401,-430.0,0.00019178,2]
[363096709,1748575840412,-430.0,0.00019178,2]
[363096711,1748575840421,-430.0,0.00019178,2]
[363096713,1748575840431,-400.0,0.00019178,2]
[363096715,1748575840440,-430.0,0.00019178,2]
[363096716,1748575840448,-401.73959716,0.00019178,2]
[363096718,1748575840458,-430.0,0.00019178,2]
[363096720,1748575840467,-470.0,0.00019178,2]
[363096722,1748575840476,-437.21,0.00019178,2]
[363096724,1748575840486,-511.35870651,0.00019178,2]
[363096726,1748575840495,-430.0,0.00019178,2]
[363096728,1748575840504,-430.0,0.00019178,2]
[363096730,1748575840513,-430.0,0.00019178,2]
[363096732,1748575840523,-430.0,0.00019178,2]
[363096734,1748575840531,-517.30722969,0.00019178,2]
[363096736,1748575840541,-320.98718604,0.00019178,2]
[363096738,1748575840550,-430.0,0.00019178,2]
[363096740,1748575840559,-430.0,0.00019178,2]
[363096742,1748575840570,-400.0,0.00019178,2]
[363096744,1748575840580,-430.0,0.00019178,2]
[363096746,1748575840590,-430.0,0.00019178,2]
[363096748,1748575840599,-430.0,0.00019178,2]
[363096750,1748575840608,-430.0,0.00019178,2]
[363096752,1748575840618,-430.0,0.00019178,2]
[363096754,1748575840627,-501.28122029,0.00019178,2]
[363096756,1748575840637,-430.0,0.00019178,2]
[363096758,1748575840646,-321.46038597,0.00019178,2]
[363096760,1748575840654,-430.0,0.00019178,2]
[363096762,1748575840664,-430.0,0.00019178,2]
[363096764,1748575840676,-430.0,0.00019178,2]
[363096766,1748575840685,-430.0,0.00019178,2]
[363096768,1748575840694,-400.0,0.00019178,2]
[363096770,1748575840704,-430.0,0.00019178,2]
[363096772,1748575840713,-400.61451964,0.00019178,2]
[363096774,1748575840723,-430.0,0.00019178,2]
[363096776,1748575840732,-430.0,0.00019178,2]
[363096778,1748575840742,-430.0,0.00019178,2]
[363096780,1748575840751,-400.0,0.00019178,2]
[363096782,1748575840761,-430.0,0.00019178,2]
[363096784,1748575840771,-430.0,0.00019178,2]
[363096786,1748575840781,-430.0,0.00019178,2]
[363096788,1748575840790,-430.0,0.00019178,2]
[363096790,1748575840800,-276.70956453,0.00019178,2]
[363096792,1748575840809,-400.0,0.00019178,2]
[363096794,1748575840819,-430.0,0.00019178,2]
[363096796,1748575840828,-430.0,0.00019178,2]
[363096798,1748575840837,-430.0,0.00019178,2]
[363096799,1748575840846,-430.0,0.00019178,2]
[363096802,1748575840855,-430.0,0.00019178,2]
[363096803,1748575840865,-430.0,0.00019178,2]
[363096805,1748575840875,-430.0,0.00019178,2]
[363096807,1748575840886,-316.10386178,0.00019178,2]
[363096809,1748575840895,-425.22942052,0.00019178,2]
[363096811,1748575840905,-199.5721859,0.00019178,2]
[363096813,1748575840914,-430.0,0.00019178,2]
[363096815,1748575840924,-541.81164189,0.00019178,2]
[363096817,1748575840933,-210.77298054,0.00019178,2]
[363096819,1748575840943,-430.0,0.00019178,2]
[363096821,1748575840953,-430.0,0.00019178,2]
[363096823,1748575840962,-430.0,0.00019178,2]
[363096825,1748575840971,-430.0,0.00019178,2]
[363096827,1748575840981,-430.0,0.00019178,2]
[363096829,1748575840990,-511.1210226,0.00019178,2]
[363096831,1748575840999,-388.79222278,0.00019178,2]
[363096833,1748575841008,-400.0,0.00019178,2]
[363096835,1748575841017,-430.0,0.00019178,2]
[363096837,1748575841027,-430.0,0.00019178,2]
[363096839,1748575841036,-430.0,0.00019178,2]
[363096841,1748575841045,-430.0,0.00019178,2]
[363096843,1748575841054,-400.53549906,0.00019178,2]
[363096845,1748575841063,-430.0,0.00019178,2]
[363096847,1748575841072,-430.0,0.00019178,2]
[363096849,1748575841082,-400.0,0.00019178,2]
[363096851,1748575841091,-430.0,0.00019178,2]
[363096853,1748575841100,-255.26730144,0.00019178,2]
[363096855,1748575841109,-430.0,0.00019178,2]
[363096857,1748575841119,-430.0,0.00019178,2]
[363096859,1748575841130,-430.0,0.00019178,2]
[363096861,1748575841139,-430.0,0.00019178,2]
[363096863,1748575841148,-604.85,0.00019178,2]
[363096865,1748575841157,-828.55,0.00019178,2]
[363096867,1748575841168,-430.0,0.00019178,2]
[363096869,1748575841178,-430.0,0.00019178,2]
[363096871,1748575841187,-401.08225389,0.00019178,2]
[363096873,1748575841197,-235.57859888,0.00019178,2]
[363096875,1748575841207,-536.24,0.00019178,2]
[363096877,1748575841216,-430.0,0.00019178,2]
[363096879,1748575841226,-430.0,0.00019178,2]
[363096881,1748575841235,-430.0,0.00019178,2]
[363096883,1748575841245,-430.0,0.00019178,2]
[363096885,1748575841254,-510.5168886,0.00019178,2]
[363096887,1748575841263,-435.2108519,0.00019178,2]
[363096889,1748575841273,-165.08031277,0.00019178,2]
[363096891,1748575841283,-430.0,0.00019178,2]
[363096893,1748575841292,-751.02,0.00019178,2]
[363096895,1748575841302,-430.0,0.00019178,2]
[363096897,1748575841312,-430.0,0.00019178,2]
[363096899,1748575841322,-430.0,0.00019178,2]
[363096901,1748575841331,-430.0,0.00019178,2]
[363096903,1748575841341,-430.0,0.00019178,2]
[363096904,1748575841350,-430.0,0.00019178,2]
[363096905,1748575841360,-430.0,0.00019178,2]
[363096906,1748575841369,-500.0,0.00019178,2]
[363096907,1748575841380,-500.0,0.00019178,2]
[363096908,1748575841390,-500.0,0.00019178,2]
[363096909,1748575841400,-538.30254465,0.00019178,2]
[363096910,1748575841409,-430.0,0.00019178,2]
[363096911,1748575841419,-402.07466146,0.00019178,2]
[363096912,1748575841429,-430.0,0.00019178,2]
[363096913,1748575841439,-430.0,0.00019178,2]
[363096914,1748575841449,-430.0,0.00019178,2]
[363096915,1748575841458,-398.84007677,0.00019178,2]
[363096916,1748575841467,-430.0,0.00019178,2]
[363096918,1748575841572,-430.0,0.00019178,2]
[363096920,1748575841582,-430.0,0.00019178,2]
[363096922,1748575841591,-430.0,0.00019178,2]
[363096924,1748575841600,-430.0,0.00019178,2]
[363096926,1748575841608,-430.0,0.00019178,2]
[363096928,1748575841618,-430.0,0.00019178,2]
[363096930,1748575841627,-430.0,0.00019178,2]
[363096932,1748575841637,-430.0,0.00019178,2]
[363096934,1748575841647,-473.71481268,0.00019178,2]
[363096936,1748575841656,-430.0,0.00019178,2]
[363096938,1748575841665,-430.0,0.00019178,2]
[363096940,1748575841674,-430.0,0.00019178,2]
[363096942,1748575841683,-430.0,0.00019178,2]
[363096944,1748575841692,-558.07193919,0.00019178,2]
[363096946,1748575841702,-400.0,0.00019178,2]
[363096948,1748575841711,-430.0,0.00019178,2]
[363096950,1748575841720,-380.82027463,0.00019178,2]
[363096952,1748575841730,-568.04678165,0.00019178,2]
[363096954,1748575841739,-430.0,0.00019178,2]
[363096956,1748575841749,-430.0,0.00019178,2]
[363096958,1748575841758,-430.0,0.00019178,2]
[363096960,1748575841767,-430.0,0.00019178,2]
[363096962,1748575841777,-430.0,0.00019178,2]
[363096964,1748575841786,-638.59,0.00019178,2]
[363096966,1748575841795,-430.0,0.00019178,2]
[363096968,1748575841805,-430.0,0.00019178,2]
[363096970,1748575841814,-430.0,0.00019178,2]
[363096972,1748575841823,-430.0,0.00019178,2]
[363096974,1748575841832,-430.0,0.00019178,2]
[363096976,1748575841841,-262.67361438,0.00019178,2]
[363096978,1748575841850,-430.0,0.00019178,2]
[363096980,1748575841859,-430.0,0.00019178,2]
[363096981,1748575841868,-430.0,0.00019178,2]
[363096984,1748575841881,-430.0,0.00019178,2]
[363096985,1748575841890,-430.0,0.00019178,2]
[363096987,1748575841899,-505.32201511,0.00019178,2]
[363096989,1748575841909,-498.98034792,0.00019178,2]
[363096992,1748575841919,-430.0,0.00019178,2]
[363096994,1748575841930,-430.0,0.00019178,2]
[363096995,1748575841940,-430.0,0.00019178,2]
[363096997,1748575841949,-430.0,0.00019178,2]
[363096999,1748575841958,-430.0,0.00019178,2]
[363097001,1748575841967,-430.0,0.00019178,2]
[363097003,1748575841976,-430.0,0.00019178,2]
[363097005,1748575841986,-430.0,0.00019178,2]
[363097007,1748575841995,-400.0,0.00019178,2]
[363097009,1748575842004,-430.0,0.00019178,2]
[363097011,1748575842013,-430.0,0.00019178,2]
[363097013,1748575842022,-430.0,0.00019178,2]
[363097015,1748575842031,-430.0,0.00019178,2]
[363097017,1748575842041,-500.0,0.00019178,2]
[363097019,1748575842051,-500.0,0.00019178,2]
[363097021,1748575842060,-500.0,0.00019178,2]
[363097023,1748575842069,-500.0,0.00019178,2]
[363097025,1748575842079,-500.0,0.00019178,2]
[363097027,1748575842088,-430.0,0.00019178,2]
[363097029,1748575842098,-430.0,0.00019178,2]
[363097031,1748575842107,-745.03,0.00019178,2]
[363097033,1748575842116,-430.0,0.00019178,2]
[363097035,1748575842126,-430.0,0.00019178,2]
[363097037,1748575842136,-430.0,0.00019178,2]
[363097039,1748575842145,-430.0,0.00019178,2]
[363097041,1748575842154,-1036.06,0.00019178,2]
[363097042,1748575842163,-430.0,0.00019178,2]
[363097044,1748575842172,-467.24861879,0.00019178,2]
[363097046,1748575842182,-1786.66,0.00019178,2]
[363097048,1748575842191,-958.59,0.00019178,2]
[363097050,1748575842201,-399.00664293,0.00019178,2]
[363097052,1748575842211,-430.0,0.00019178,2]